[Event "GER-ch Youth-U14 2022"]
[Site "Willingen"]
[Date "2022.06.05"]
[Round "2.8"]
[White "Klaska, Philipp Leon"]
[Black "Mader, Fabian"]
[Result "1/2-1/2"]
[ECO "B33"]
[WhiteElo "1946"]
[BlackElo "1652"]
[Annotator "TA"]
[PlyCount "115"]
[EventDate "2022.06.05"]
[EventType "swiss"]
[EventRounds "9"]
[EventCountry "GER"]
[SourceTitle "playchess.com"]
[Source "ChessBase"]
[SourceQuality "1"]
[TimeControl "40/4500+30:900+30"]

{[%evp 25,115,8,13,0,6,6,10,3,23,18,34,34,59,59,120,119,116,118,131,71,76,73,66,67,84,46,40,54,66,49,92,0,0,0,0,0,0,-6,0,-7,0,-13,-7,-121,-118,-123,-110,-412,-399,-378,-176,-3088,-290,-252,-298,-248,-251,-224,-238,-3995,-304,-12836,-304,-297,-303,-292,-283,-249,-242,-801,-790,-731,-703,-1057,-1201,-1179,-783,-1144,-1117,-1106,-949,-737,0,0,0,0,0,0,0,0,0,0]} 1. e4 {[%emt 0:00:00]} c5 {[%emt 0:00:00]} 2. Nf3 {[%emt 0:00:00]} Nc6 {[%emt 0:00:00]} 3. d4 {[%emt 0:00:00]} cxd4 {[%emt 0:00:00]} 4. Nxd4 {[%emt 0:00:00]} Nf6 {[%emt 0:00:00]} 5. Nc3 {[%emt 0:00:00]} e5 {[%emt 0:00:00]} 6. Ndb5 {[%emt 0:00:00]} d6 {[%emt 0:00:00]} 7. Bg5 {[%emt 0:00:00]} a6 {[%emt 0:00:00]} 8. Na3 {[%emt 0:00:00]} b5 {[%emt 0:00:00]} 9. Nd5 {[%emt 0:00:00]} Be7 {[%emt 0:00:00]} 10. Bxf6 {[%emt 0:00:00]} Bxf6 {[%emt 0:00:00]} 11. c3 {[%emt 0:00:00]} Bg5 {[%emt 0:00:00]} 12. Be2 {[%emt 0:00:00]} O-O {[%emt 0:00:00]} 13. Nc2 {[%emt 0:00:00]} Be6 {[%emt 0:00:00] is the legacy move (13...Ne7).} 14. Nce3 {[%emt 0:04:23] B33: Sicilian: Pelikan and Sveshnikov Variations.} Bxe3 {[%emt 0:00:00]} 15. Nxe3 {[%emt 0:00:19]} Ne7 {[%emt 0:00:00]} 16. Bf3 {[%emt 0:07:36]} Ra7 {[%emt 0:00:35]} 17. O-O {[%emt 0:06:08]} Kh8 {[%emt 0:02:37]} 18. a4 {[%emt 0:05:27] Strongly threatening axb5.} bxa4 {[%emt 0:01:29]} 19. Rxa4 {[%emt 0:07:40] [#]} g6 $146 {[%emt 0:08:10]} (19... a5 $14) ({Predecessor:} 19... f5 20. exf5 Nxf5 21. Nxf5 Rxf5 22. Bg4 Rf6 23. Bxe6 Rxe6 24. Qd5 Rh6 25. Rfa1 Qb6 26. Qc4 Rf6 {1-0 (26) Langner,J (1824)-Palasek,J (1647) Havirov 2008}) 20. Qd3 $16 {[%emt 0:05:52]} Qb6 {[%emt 0:05:40]} 21. Rfa1 {[%emt 0:08:50][%cal Ra4a6]} Rfa8 {[%emt 0:02:19]} 22. Be2 {[%emt 0:07:11]} (22. Ra5 $142) 22... a5 {[%emt 0:09:38]} (22... Qxb2 $2 23. Rb1 Qxb1+ 24. Qxb1 $18) 23. Qd2 {[%emt 0:02:47]} Bb3 {[%emt 0:10:36]} 24. R4a3 {[%emt 0:01:52]} Nc8 {[%emt 0:03:58]} 25. Bc4 {[%emt 0:04:18]} Bxc4 {[%emt 0:13:44]} 26. Nxc4 {[%emt 0:00:02]} Qc7 {[%emt 0:03:55]} 27. Ne3 {[%emt 0:01:12] White is more active.} (27. Qh6 {with more complications.} Ne7 28. Ra4 d5 29. exd5 Nxd5 30. Rxa5 Rxa5 31. Rxa5 Rb8 32. Rxd5 Qxc4 33. Qd2) 27... Nb6 {[%emt 0:02:21]} 28. Nd5 {[%emt 0:04:39]} (28. h4 $16) 28... Nxd5 $11 {[%emt 0:02:11]} 29. Qxd5 {[%emt 0:00:23]} a4 {[%emt 0:04:52]} 30. Rd1 {[%emt 0:05:23]} Ra6 {[%emt 0:02:32]} 31. Rd2 {[%emt 0:01:50]} Rb8 {[%emt 0:03:23][%cal Ba8b8,Bb8b4,Bb4c4][%mdl 32]} 32. Qa2 {[%emt 0:03:07] [#]} Rb4 $1 {[%emt 0:01:34]} 33. Qb1 {[%emt 0:02:09]} (33. Qd5 Rbb6) 33... Rc4 {[%emt 0:00:59]} 34. Rd5 {[%emt 0:04:35]} (34. h3 $11) 34... Rb6 $1 $17 {[%emt 0:10:28][%cal Oc4c3] ...Rxc3! is the strong threat.} 35. Qc2 {[%emt 0:03:58]} Qb7 $1 {[%emt 0:00:37]} 36. h3 $2 {[%emt 0:01:27][%mdl 8192]} (36. Ra2 $17 {is tougher.}) 36... Rxb2 $19 {[%emt 0:00:43]} 37. Qd3 {[%emt 0:00:07] [#]} Qc6 {[%emt 0:00:41]} (37... Qb6 $142 $1 38. Qe3 Qxe3 39. fxe3 Rxe4) 38. f3 {[%emt 0:01:30]} (38. Rxd6 Qxe4 39. Qxe4 Rxe4 40. Rd1) 38... Rb3 $2 {[%emt 0:00:39]} (38... Qb6+ 39. Rd4 d5 40. exd5 exd4 41. Qxc4 Rb1+ 42. Kf2 dxc3+ 43. Kg3 Qd6+ 44. Kh4 Qxa3) 39. Rxb3 {[%emt 0:01:19]} axb3 {[%emt 0:00:06]} 40. Rxd6 {[%emt 0:00:28][%mdl 4096] Endgame KQR-KQR} Qc5+ {[%emt 0:00:27]} 41. Kh2 {[%emt 0:15:25]} Rxc3 {[%emt 0:15:07]} 42. Qa6 {[%emt 0:00:00]} (42. Qd5) 42... Kg7 $2 {[%emt 0:00:00]} (42... Qe3 43. Rf6 Kg7) 43. Rd7 $2 {[%emt 0:00:00]} (43. Qb6) 43... Qc6 $2 {[%emt 0:00:00]} (43... Qe3 44. Rd1 b2) 44. Qxc6 {[%emt 0:00:00]} Rxc6 {[%emt 0:00:00] KR-KR} 45. Rb7 {[%emt 0:00:00]} Rc3 {[%emt 0:00:00]} 46. Kg3 {[%emt 0:00:00]} Kf6 {[%emt 0:00:00]} 47. Kh2 $2 {[%emt 0:00:00]} (47. h4) 47... Ke6 {[%emt 0:00:00]} 48. Kg3 {[%emt 0:00:00]} Kd6 {[%emt 0:00:00]} 49. Kg4 {[%emt 0:00:00]} Kc6 {[%emt 0:00:00]} 50. Rb8 {[%emt 0:00:00]} Kc5 {[%emt 0:00:00]} 51. Kg5 {[%emt 0:00:00]} Kd4 {[%emt 0:00:00]} 52. Kf6 {[%emt 0:00:00]} Rc6+ {[%emt 0:00:00]} 53. Kxf7 {[%emt 0:00:00] [#]} Kc3 $2 {[%emt 0:00:00]} (53... Kc4 $1 $19 54. Kg7 Rc7+ 55. Kh6 Kc3) 54. f4 $1 $11 {[%emt 0:00:00] The position is equal.} Kd4 {[%emt 0:06:18]} (54... Rc5 $5 55. Kf6 Rc6+ 56. Kf7 (56. Kxe5 b2 $11) 56... exf4 $11) 55. fxe5 {[%emt 0:00:00]} Kxe5 {[%emt 0:00:10]} 56. Rxb3 {[%emt 0:00:00]} Rc7+ {[%emt 0:00:35]} 57. Kg8 {[%emt 0:00:00]} Kxe4 {[%emt 0:00:11]} 58. Rb4+ {[%emt 0:02:59] Weighted Error Value: White=0.85/Black=0.61} 1/2-1/2

[Event "GER-ch Youth-U14 2022"]
[Site "Willingen"]
[Date "2022.06.05"]
[Round "2.9"]
[White "Sinka, Silas"]
[Black "Udelnov, Valentin"]
[Result "0-1"]
[ECO "E71"]
[WhiteElo "1386"]
[BlackElo "1901"]
[Annotator "TA"]
[PlyCount "104"]
[EventDate "2022.06.05"]
[EventType "swiss"]
[EventRounds "9"]
[EventCountry "GER"]
[SourceTitle "playchess.com"]
[Source "ChessBase"]
[SourceQuality "1"]
[TimeControl "40/4500+30:900+30"]

{[%evp 22,104,56,53,63,41,66,59,85,90,86,92,68,73,166,0,0,0,29,0,12,27,43,-31,-27,-46,0,0,0,-95,-8,-8,-11,-93,-11,-12,-16,-37,-7,-12,0,0,0,0,0,0,0,0,0,0,0,-15,-13,0,-5,-231,-231,-231,-231,-231,-231,-231,-231,-231,-231,-223,-223,-235,-249,-572,-553,-531,-531,-29979,-29980,-29980,-29980,-29980,-29981,-29981,-29980,-29980,-29980,-29987,-29988]} 1. d4 {[%emt 0:00:00]} Nf6 {[%emt 0:00:00]} 2. c4 {[%emt 0:00:00]} g6 {[%emt 0:00:00]} 3. Nc3 {[%emt 0:00:00]} Bg7 {[%emt 0:00:00]} 4. e4 {[%emt 0:00:00]} d6 {[%emt 0:00:00]} 5. h3 {[%emt 0:00:00]} O-O {[%emt 0:00:00]} 6. Nf3 {[%emt 0:00:00]} e5 {[%emt 0:00:00]} 7. d5 {[%emt 0:00:00]} Na6 {[%emt 0:00:00]} 8. Be3 {[%emt 0:00:00]} Nc5 {[%emt 0:00:00]} 9. Nd2 {[%emt 0:00:00]} c6 {[%emt 0:00:00]} 10. g4 {[%emt 0:00:00][%cal Bg2g4,Bg4g5,Bg5f6,Bf6g7][%mdl 32]} cxd5 {[%emt 0:00:00]} 11. cxd5 {[%emt 0:00:00]} a5 {[%emt 0:08:51]} 12. Be2 {[%emt 0:00:00]} Bd7 {[%emt 0:01:43] E92: King's Indian: Classical: 6 Be2 e5: 7 dxe5, 7 Be3 and Petrosian System without 7...Nbd7.} 13. h4 {[%emt 0:00:00] has lost popularity (13.g5).} b5 {[%emt 0:02:50]} 14. g5 {[%emt 0:00:12]} b4 {[%emt 0:04:01] White is slightly better.} 15. gxf6 {[%emt 0:02:35]} bxc3 {[%emt 0:01:39]} 16. fxg7 {[%emt 0:00:36]} cxd2+ {[%emt 0:00:07]} 17. Qxd2 {[%emt 0:00:11]} Re8 {[%emt 0:00:29] [#]} (17... Kxg7 $16 18. Bxc5 dxc5) 18. Bf3 $146 {[%emt 0:02:48]} (18. Bxc5 $18 dxc5 19. h5) ({Predecessor:} 18. f3 h5 19. Bxc5 dxc5 20. Qh6 f6 21. Rg1 Kf7 22. d6 Be6 23. Qxg6+ Kg8 24. Rd1 Ra7 25. Qh6 {1-0 (25) Parvanyan,A (2436)-Taichman,O (2285) Chess.com INT 2021}) 18... Qf6 $11 {[%emt 0:01:43]} 19. Bg2 {[%emt 0:05:10]} Rec8 {[%emt 0:01:09]} (19... Rab8 $5 {[%cal Rb8b2]} 20. Bxc5 dxc5 $14) 20. h5 {[%emt 0:03:07]} Qxg7 {[%emt 0:06:39]} 21. hxg6 {[%emt 0:01:04]} fxg6 {[%emt 0:00:16]} 22. Bxc5 {[%emt 0:06:03]} (22. Rc1 $14) 22... Rxc5 $15 {[%emt 0:00:15]} 23. Rc1 {[%emt 0:01:48]} Rac8 {[%emt 0:00:02]} (23... Rxc1+ $15 24. Qxc1 Rf8) 24. Rxc5 $11 {[%emt 0:00:30]} Rxc5 {[%emt 0:00:10]} 25. Bh3 {[%emt 0:00:27]} (25. O-O $11 {keeps the balance.}) 25... Bxh3 {[%emt 0:05:19]} ({Black should play} 25... Qf7 $17 {Strongly threatening ...Qf3.} 26. Bg2 Bb5) 26. Rxh3 $17 {[%emt 0:00:07][%mdl 4096] Endgame KQR-KQR} Qc7 {[%emt 0:00:04]} 27. Kd1 {[%emt 0:04:27] Prevents Rc1+.} (27. Rc3 $11) 27... Rc4 {[%emt 0:01:30]} (27... Qd7 $17 28. Rc3 Qg4+ 29. f3 Qg1+ 30. Kc2 Kg7) 28. Rc3 $11 {[%emt 0:00:59]} Rxc3 {[%emt 0:00:16]} (28... Kg7 {is interesting.} 29. Qg5 Rxc3 30. bxc3 Qd7) 29. bxc3 {[%emt 0:00:09] KQ-KQ} Qc4 {[%emt 0:00:09]} 30. Qe3 {[%emt 0:07:38]} Qxa2 {[%emt 0:03:14]} 31. Qb6 {[%emt 0:00:26] Against Qb1+} Qa4+ {[%emt 0:00:40]} 32. Kd2 {[%emt 0:00:35]} Qxe4 {[%emt 0:01:11]} 33. Qxd6 {[%emt 0:00:10]} Qf5 {[%emt 0:17:30]} 34. Ke1 {[%emt 0:03:13]} a4 {[%emt 0:01:25]} 35. Qc5 {[%emt 0:10:05]} Qe4+ {[%emt 0:07:05]} 36. Kd2 {[%emt 0:01:21]} a3 {[%emt 0:01:32] [#] Hoping for ...a2.} 37. d6 {[%emt 0:00:20]} a2 {[%emt 0:09:53]} 38. d7 $2 {[%emt 0:00:59] Loses the game.} (38. Qa5 $11) 38... Qf4+ $19 {[%emt 0:00:59]} 39. Qe3 {[%emt 0:00:07] Intending Qxf4 and mate.} Qf6 {[%emt 0:07:11]} 40. Qa7 {[%emt 0:03:45]} a1=Q {[%emt 0:03:02]} 41. Qxa1 {[%emt 0:19:14] [#] Qa8+ is the strong threat.} Qxf2+ {[%emt 0:00:00]} 42. Kd1 {[%emt 0:00:00]} Qf1+ {[%emt 0:00:00]} 43. Kd2 {[%emt 0:00:00]} Qf4+ {[%emt 0:00:00]} ({Not} 43... Qxa1 44. d8=Q+ Kg7 45. Qd7+ Kg8 46. Qd5+ Kf8 47. Qd8+ Kg7 48. Qd7+ Kh8 49. Qd8+ Kg7 $11) 44. Kd3 {[%emt 0:00:00]} Qf5+ {[%emt 0:00:00]} 45. Kc4 $2 {[%emt 0:00:00]} (45. Kd2 Qxd7+ 46. Ke3) 45... Qxd7 {[%emt 0:00:00]} 46. Qa8+ {[%emt 0:00:00]} Kg7 {[%emt 0:00:00]} 47. Qd5 {[%emt 0:00:00]} Qxd5+ {[%emt 0:00:00] Black mates.} 48. Kxd5 {[%emt 0:00:00]} e4 {[%emt 0:00:00]} 49. Kxe4 {[%emt 0:00:00]} Kf6 {[%emt 0:00:00]} 50. Kd5 {[%emt 0:00:00]} Ke7 {[%emt 0:00:00]} 51. Kc6 {[%emt 0:00:00]} h5 {[%emt 0:00:00][%cal Bh7h5,Bh5h4][%mdl 32]} 52. Kb6 {[%emt 0:00:00]} h4 {[%emt 0:00:00] Weighted Error Value: White=0.50/Black=0.16 (very precise)} 0-1

[Event "GER-ch Youth-U14 2022"]
[Site "Willingen"]
[Date "2022.06.05"]
[Round "2.10"]
[White "Möller, Maurin"]
[Black "Schreidl, Michael"]
[Result "1-0"]
[ECO "C55"]
[WhiteElo "1780"]
[BlackElo "1614"]
[Annotator "NA RC COMBH"]
[PlyCount "49"]
[EventDate "2022.06.05"]
[EventType "swiss"]
[EventRounds "9"]
[EventCountry "GER"]
[SourceTitle "playchess.com"]
[Source "ChessBase"]
[SourceQuality "1"]
[TimeControl "40/4500+30:900+30"]

1. e4 {[%emt 0:00:00]} e5 {[%emt 0:00:00]} 2. Nf3 {[%emt 0:00:00]} Nc6 {[%emt 0:00:00]} 3. d4 {[%emt 0:00:00]} exd4 {[%emt 0:00:00]} 4. Bc4 {[%emt 0:00:00]} Nf6 {[%emt 0:00:00]} 5. O-O {[%emt 0:00:00]} d6 {[%emt 0:00:00]} 6. Nxd4 {[%emt 0:00:00]} Ne5 {[%emt 0:00:00]} 7. Bb3 {[%emt 0:00:00]} Be7 {[%emt 0:00:00]} 8. f4 {[%emt 0:00:00]} Ned7 {[%emt 0:00:00]} 9. c3 {[%emt 0:01:12]} Nc5 {[%emt 0:00:00]} 10. e5 {[%emt 0:00:54]} Bg4 {[%emt 0:00:00]} 11. Qe1 {[%emt 0:05:20]} Nh5 {[%emt 0:03:56]} 12. h3 {[%emt 0:05:44]} Bh4 {[%emt 0:07:05]} 13. Qe3 {[%emt 0:00:15]} Be6 {[%emt 0:01:24]} 14. f5 {[%emt 0:01:27]} Bxb3 {[%emt 0:02:32]} 15. exd6+ {[%emt 0:00:08]} Kf8 {[%emt 0:00:15]} 16. axb3 {[%emt 0:00:42]} Qxd6 {[%emt 0:00:48]} 17. b4 {[%emt 0:01:45]} Nd7 {[%emt 0:02:03]} 18. Qf3 {[%emt 0:00:20]} Nhf6 {[%emt 0:04:15]} 19. Bf4 {[%emt 0:00:18]} Ne5 {[%emt 0:01:33]} 20. Qxb7 {[%emt 0:00:21]} Re8 {[%emt 0:00:51]} 21. g3 {[%emt 0:00:29]} g5 {[%emt 0:04:39]} 22. fxg6 {[%emt 0:00:54]} hxg6 {[%emt 0:00:24]} 23. Ra6 {[%emt 0:00:30]} Qe7 {[%emt 0:01:23]} 24. gxh4 {[%emt 0:00:21]} Nh5 {[%emt 0:02:02]} 25. Ne6+ {[%emt 0:00:45]} 1-0

[Event "GER-ch Youth-U14 2022"]
[Site "Willingen"]
[Date "2022.06.05"]
[Round "2.11"]
[White "Goldinov, Daniel"]
[Black "Haubold, Sebastian Marcel"]
[Result "0-1"]
[ECO "C29"]
[WhiteElo "1626"]
[BlackElo "1869"]
[Annotator "NA RC COMBH"]
[PlyCount "84"]
[EventDate "2022.06.05"]
[EventType "swiss"]
[EventRounds "9"]
[EventCountry "GER"]
[SourceTitle "playchess.com"]
[Source "ChessBase"]
[SourceQuality "1"]
[TimeControl "40/4500+30:900+30"]

1. e4 {[%emt 0:00:00]} e5 {[%emt 0:00:00]} 2. Nc3 {[%emt 0:00:00]} Nf6 {[%emt 0:00:00]} 3. f4 {[%emt 0:00:00]} d5 {[%emt 0:00:00]} 4. fxe5 {[%emt 0:00:00]} Nxe4 {[%emt 0:00:00]} 5. Qf3 {[%emt 0:00:00]} Nxc3 {[%emt 0:00:00]} 6. bxc3 {[%emt 0:00:00]} c5 {[%emt 0:00:00]} 7. Qg3 {[%emt 0:00:00]} Bf5 {[%emt 0:04:42]} 8. Bb5+ $11 {[%emt 0:00:00]} Nc6 {[%emt 0:00:07]} (8... Nd7 $1 $11) 9. d3 {[%emt 0:00:00]} d4 {[%emt 0:10:22]} 10. Ne2 {[%emt 0:03:11]} Bg6 {[%emt 0:10:18]} 11. O-O {[%emt 0:04:41]} dxc3 {[%emt 0:17:42]} 12. Qf3 {[%emt 0:03:21]} Qd7 {[%emt 0:00:40]} 13. Be3 {[%emt 0:02:54]} Be7 {[%emt 0:02:15]} 14. Nxc3 {[%emt 0:02:28]} Rc8 {[%emt 0:03:04]} 15. Ne4 {[%emt 0:03:12]} a6 {[%emt 0:02:57]} 16. Bxc6 {[%emt 0:09:50]} Qxc6 {[%emt 0:00:15]} 17. Bg5 {[%emt 0:12:10]} Bxg5 {[%emt 0:03:03]} 18. Nxg5 {[%emt 0:00:44]} O-O {[%emt 0:00:29]} 19. Rae1 {[%emt 0:04:45]} Qxf3 {[%emt 0:04:37]} 20. Nxf3 {[%emt 0:01:10]} Rfe8 {[%emt 0:01:15]} 21. Nh4 {[%emt 0:02:19]} Rcd8 {[%emt 0:04:45]} 22. Rf4 {[%emt 0:05:25]} Re6 {[%emt 0:02:38]} 23. Nxg6 {[%emt 0:01:28]} hxg6 {[%emt 0:00:06]} 24. Kf2 {[%emt 0:11:32]} Rd5 {[%emt 0:03:32]} 25. Rfe4 {[%emt 0:00:56]} Kf8 {[%emt 0:00:19]} 26. R1e3 {[%emt 0:01:36]} Ke7 {[%emt 0:00:33]} 27. c3 {[%emt 0:01:07]} Rb6 {[%emt 0:01:21]} 28. d4 {[%emt 0:01:19]} cxd4 {[%emt 0:00:08]} 29. cxd4 {[%emt 0:00:32]} Rb4 {[%emt 0:00:34]} 30. Rd3 {[%emt 0:00:42]} Ra5 {[%emt 0:01:17]} 31. Rd2 {[%emt 0:01:50]} Rba4 {[%emt 0:00:20]} 32. Ree2 {[%emt 0:01:43]} Ke6 {[%emt 0:02:03]} 33. Ke3 {[%emt 0:02:53]} f6 {[%emt 0:02:49]} 34. exf6 {[%emt 0:02:05]} gxf6 {[%emt 0:00:03]} 35. Rb2 {[%emt 0:01:28]} b5 {[%emt 0:01:24]} 36. Rec2 {[%emt 0:00:59]} Rc4 {[%emt 0:02:35]} 37. Kd3 {[%emt 0:02:17]} Kd5 {[%emt 0:00:14]} 38. Rxc4 {[%emt 0:01:12]} bxc4+ {[%emt 0:00:05]} 39. Kc3 {[%emt 0:01:03]} Ra3+ {[%emt 0:00:41]} 40. Kb4 {[%emt 0:00:22]} Rd3 {[%emt 0:00:14]} 41. Ka5 {[%emt 0:16:48]} Kxd4 {[%emt 0:15:34]} 42. Kxa6 {[%emt 0:01:44]} c3 {[%emt 0:00:06]} 0-1

[Event "GER-ch Youth-U14 2022"]
[Site "Willingen"]
[Date "2022.06.05"]
[Round "2.12"]
[White "Deschler, Arne"]
[Black "Linnemann, Caspar"]
[Result "1/2-1/2"]
[ECO "B84"]
[WhiteElo "1646"]
[BlackElo "1720"]
[Annotator "NA RC COMBH"]
[PlyCount "50"]
[EventDate "2022.06.05"]
[EventType "swiss"]
[EventRounds "9"]
[EventCountry "GER"]
[SourceTitle "playchess.com"]
[Source "ChessBase"]
[SourceQuality "1"]
[TimeControl "40/4500+30:900+30"]

1. e4 {[%emt 0:00:00]} c5 {[%emt 0:00:00]} 2. Nf3 {[%emt 0:00:00]} d6 {[%emt 0:00:00]} 3. d4 {[%emt 0:00:00]} cxd4 {[%emt 0:00:00]} 4. Nxd4 {[%emt 0:00:00]} Nf6 {[%emt 0:00:00]} 5. Nc3 {[%emt 0:00:00]} a6 {[%emt 0:00:00]} 6. Be2 {[%emt 0:00:00]} e6 {[%emt 0:00:00]} 7. f4 {[%emt 0:00:00]} Qc7 {[%emt 0:00:00]} 8. g4 {[%emt 0:00:00]} h6 {[%emt 0:00:00]} 9. Be3 {[%emt 0:00:00]} Be7 {[%emt 0:00:00]} 10. Bf3 {[%emt 0:00:00]} Nc6 {[%emt 0:00:51]} 11. Qe2 {[%emt 0:00:00]} Bd7 {[%emt 0:04:10]} 12. g5 {[%emt 0:00:00]} hxg5 {[%emt 0:01:04]} 13. fxg5 {[%emt 0:00:00]} Nh7 {[%emt 0:00:59]} 14. h4 {[%emt 0:05:42]} Ne5 {[%emt 0:08:51]} 15. O-O-O {[%emt 0:05:07]} O-O-O {[%emt 0:10:34]} 16. Nf5 {[%emt 0:03:49]} Bf8 {[%emt 0:09:08]} 17. Nd4 {[%emt 0:12:00]} Kb8 {[%emt 0:05:40]} 18. Bg4 {[%emt 0:01:37]} Be7 {[%emt 0:05:57]} 19. Rhf1 {[%emt 0:08:43]} Rc8 {[%emt 0:04:43]} 20. Nb3 {[%emt 0:03:48]} Nf8 {[%emt 0:06:12]} 21. Bf2 {[%emt 0:07:44]} Nfg6 {[%emt 0:04:17]} 22. Qe3 {[%emt 0:01:37]} Nc6 {[%emt 0:02:40]} 23. Bg3 {[%emt 0:03:29]} Nce5 {[%emt 0:05:03]} 24. Bf2 {[%emt 0:00:31]} Nc6 {[%emt 0:00:10]} 25. Bg3 {[%emt 0:03:52]} Nce5 {[%emt 0:00:38]} 1/2-1/2

[Event "GER-ch Youth-U14 2022"]
[Site "Willingen"]
[Date "2022.06.05"]
[Round "2.13"]
[White "Campora, Daniel H."]
[Black "Kempe, Caius Emilian"]
[Result "1-0"]
[ECO "A50"]
[WhiteElo "2397"]
[BlackElo "1973"]
[Annotator "TA"]
[PlyCount "82"]
[EventDate "2022.06.05"]
[EventType "swiss"]
[EventRounds "9"]
[EventCountry "GER"]
[SourceTitle "playchess.com"]
[Source "ChessBase"]
[SourceQuality "1"]
[TimeControl "40/4500+30:900+30"]

{[%evp 10,82,36,36,29,12,22,0,10,22,16,13,17,17,27,0,19,31,27,0,0,-5,12,15,19,19,41,0,6,16,31,0,58,63,72,73,70,0,85,89,83,18,18,13,12,33,64,64,118,0,132,39,49,35,172,180,1052,1025,1053,1022,817,211,258,197,209,216,237,15,128,122,112,0,0,-347,639]} 1. d4 {[%emt 0:00:00]} Nf6 {[%emt 0:00:00]} 2. c4 {[%emt 0:00:00]} g6 {[%emt 0:00:00]} 3. f3 {[%emt 0:00:00]} Bg7 {[%emt 0:00:00]} 4. e4 {[%emt 0:00:00]} d6 {[%emt 0:00:00]} 5. Ne2 {[%emt 0:00:00]} O-O {[%emt 0:00:00]} 6. Be3 {[%emt 0:00:00]} c5 {[%emt 0:00:00] E60: King's Indian: Unusual lines and Fianchetto Variation without Nc3.} 7. d5 {[%emt 0:00:00]} e6 {[%emt 0:00:00]} 8. Nec3 {[%emt 0:00:00]} exd5 {[%emt 0:00:00] The position is equal.} 9. cxd5 {[%emt 0:00:00]} a6 {[%emt 0:00:00]} 10. a4 {[%emt 0:00:00] Inhibits b5.} Ne8 {[%emt 0:00:00]} 11. Be2 {[%emt 0:00:00]} f5 {[%emt 0:00:00]} 12. O-O {[%emt 0:00:00]} f4 {[%emt 0:00:00]} 13. Bf2 {[%emt 0:00:00]} Nd7 {[%emt 0:00:00]} 14. Na3 {[%emt 0:00:00]} Ne5 {[%emt 0:00:00] [#]} 15. Nc4 $146 {[%emt 0:00:00]} ({Predecessor:} 15. Rb1 g5 16. Nc4 Nxc4 17. Bxc4 Be5 18. Qd3 a5 19. Rfe1 h5 20. Kf1 Nf6 21. Ke2 {0-1 (41) Vardanyan,A (2178)-Svane,F (2421) Chess.com INT 2020}) 15... Qg5 {[%emt 0:06:38] ...Nxc4 is the strong threat.} 16. Kh1 {[%emt 0:03:57]} Nxc4 {[%emt 0:06:37]} 17. Bxc4 {[%emt 0:03:25]} Nf6 {[%emt 0:00:20]} 18. Re1 {[%emt 0:11:51][%cal Oe4e5] White wants to play e5!} Nd7 {[%emt 0:00:25]} 19. a5 {[%emt 0:10:16]} Ne5 {[%emt 0:02:47]} 20. Bf1 {[%emt 0:02:07]} (20. Be2 $5 {[%cal Rc3a4]}) 20... Qe7 {[%emt 0:05:23]} (20... Qh5 $11) 21. Na4 $14 {[%emt 0:01:41]} g5 {[%emt 0:01:43]} 22. Nb6 {[%emt 0:00:46]} Rb8 {[%emt 0:03:40]} 23. Rc1 {[%emt 0:04:12]} (23. Rb1 $14) 23... Kh8 {[%emt 0:12:10]} (23... g4 $11 {keeps the balance.}) 24. b4 $16 {[%emt 0:06:26]} cxb4 {[%emt 0:01:42]} 25. Qb3 {[%emt 0:01:35]} (25. Re2 $16) 25... g4 $11 {[%emt 0:08:35]} 26. Rc2 {[%emt 0:05:06]} Bd7 {[%emt 0:06:32]} 27. Rec1 $36 {[%emt 0:05:03][%mdl 2048] White has some pressure.} gxf3 {[%emt 0:02:46]} 28. gxf3 {[%emt 0:00:34]} Be8 {[%emt 0:18:10]} (28... Bb5 $14) 29. Rc7 {[%emt 0:03:44]} (29. Nc8 $1 $16 {[%cal Rc8e7]} Qf6 30. Bd4 (30. Qxb4 Nxf3 31. Nxd6 Bg6 $14)) 29... Qf6 {[%emt 0:04:50]} (29... Qg5 $11) 30. Bg2 {[%emt 0:04:50]} ({White should try} 30. Bd4 $16) 30... Rg8 $14 {[%emt 0:04:07]} 31. Bd4 {[%emt 0:01:41]} (31. Qxb4 Nd3 32. Qd2 Nxc1 33. Qxc1 Rd8 34. Rxb7 Bb5 $17) 31... Qh4 {[%emt 0:01:46]} ({Better is} 31... Qh6 $1 $14) 32. Qxb4 $18 {[%emt 0:01:28][%cal Oc7g7]} Nd3 $2 {[%emt 0:02:06] [#]} (32... Rd8 33. Rxb7 Bh5) 33. Rxg7 $1 {[%emt 0:02:22]} Rxg7 {[%emt 0:00:58]} 34. Qxd6 {[%emt 0:00:39][%cal Rd6f8]} Nf2+ {[%emt 0:00:42]} 35. Kg1 $2 {[%emt 0:00:13]} (35. Bxf2 {Threatening mate with Qf8+.} Qxf2 36. Rg1 (36. Qf8+ Rg8 $11)) 35... Nh3+ {[%emt 0:00:12]} 36. Kf1 {[%emt 0:01:04][%cal Rd6f8]} ({Weaker is} 36. Kh1 Nf2+ 37. Bxf2 Qxf2 $18) 36... Bb5+ {[%emt 0:00:08]} 37. Nc4 {[%emt 0:00:13][%mdl 1024] White has strong compensation. Really sharp!} Rbg8 {[%emt 0:00:15][%cal Oh3f2]} 38. Qe6 $2 {[%emt 0:03:12] Active counter play!} (38. Ke2 $18) 38... Ng5 {[%emt 0:00:55]} 39. Qf5 $16 {[%emt 0:00:24] And now Ke2 would win.} ({Of course not} 39. Bxg7+ $6 Rxg7 40. Qc8+ Rg8 $11) 39... h6 {[%emt 0:00:52][%cal Oh4h2] [#]} 40. d6 ({But not} 40. Bxg7+ $6 Rxg7 41. Qf8+ Kh7 42. Qf5+ Rg6 $11) (40. h3 $1 $16) 40... Qxh2 $11 {[%cal Og5e4] aiming for ...Nxe4!} 41. d7 $2 {[%mdl 8192] [#]} (41. Bxg7+ $11 {and White stays safe.} Rxg7 42. Qf8+ Kh7 43. Qf5+ Kh8 44. Qf8+ Kh7 45. Qf5+ Kh8) 41... Qh4 $4 {[%mdl 8192] Weighted Error Value: White=0.57/Black=0.33} 1-0